[Event "Titled Tuesday Blitz November 14 Late 2023"]
[White "Chemin, Justo Reinaldo"]
[Black "Jesseinkman"]
[WhiteFideId "2101580"]
[WhiteElo "2214"]
[BlackElo "2484"]
[Result "0-1"]
[Round "2"]
[TimeControl "180+1"]
[Date "2023.11.14"]
[WhiteClock "0:00:00"]
[BlackClock "0:00:02"]
[Board "153"]

1. e4 {[%clk 0:03:00]}  e5 {[%clk 0:02:52]} 2. Nf3 {[%clk 0:02:59]}  Nc6 {[%clk 0:02:53]} 3. Bb5 {[%clk 0:02:59]}  a6 {[%clk 0:02:50]} 4. Ba4 {[%clk 0:02:58]}  Nf6 {[%clk 0:02:50]} 5. Bxc6 {[%clk 0:02:56]}  dxc6 {[%clk 0:02:50]} 6. d3 {[%clk 0:02:57]}  Bc5 {[%clk 0:02:22]} 7. Bg5 {[%clk 0:02:54]}  h6 {[%clk 0:02:22]} 8. Bh4 {[%clk 0:02:53]}  Qe7 {[%clk 0:02:13]} 9. Nbd2 {[%clk 0:02:41]}  b5 {[%clk 0:01:45]} 10. Bg3 {[%clk 0:02:30]}  Bd6 {[%clk 0:01:40]} 11. Qe2 {[%clk 0:02:18]}  Nh5 {[%clk 0:01:39]} 12. O-O {[%clk 0:01:36]}  Nxg3 {[%clk 0:01:38]} 13. hxg3 {[%clk 0:01:34]}  O-O {[%clk 0:01:38]} 14. Nh4 {[%clk 0:01:29]}  g6 {[%clk 0:01:32]} 15. c3 {[%clk 0:01:09]}  c5 {[%clk 0:01:31]} 16. Rae1 {[%clk 0:01:03]}  Kg7 {[%clk 0:01:24]} 17. d4 {[%clk 0:00:58]}  cxd4 {[%clk 0:01:16]} 18. cxd4 {[%clk 0:00:58]}  c5 {[%clk 0:01:12]} 19. d5 {[%clk 0:00:44]}  c4 {[%clk 0:01:12]} 20. Ndf3 {[%clk 0:00:39]}  Bd7 {[%clk 0:01:07]} 21. Nh2 {[%clk 0:00:38]}  h5 {[%clk 0:00:59]} 22. N4f3 {[%clk 0:00:36]}  Rac8 {[%clk 0:00:57]} 23. Nd2 {[%clk 0:00:33]}  h4 {[%clk 0:00:52]} 24. gxh4 {[%clk 0:00:32]}  Qxh4 {[%clk 0:00:51]} 25. g3 {[%clk 0:00:32]}  Qh6 {[%clk 0:00:45]} 26. f4 {[%clk 0:00:25]}  exf4 {[%clk 0:00:38]} 27. e5 {[%clk 0:00:25]}  Bc5+ {[%clk 0:00:35]} 28. Kh1 {[%clk 0:00:25]}  fxg3 {[%clk 0:00:33]} 29. e6 {[%clk 0:00:21]}  Rh8 {[%clk 0:00:32]} 30. Qe5+ {[%clk 0:00:18]}  Kg8 {[%clk 0:00:25]} 31. Qxg3 {[%clk 0:00:18]}  fxe6 {[%clk 0:00:21]} 32. Rf6 {[%clk 0:00:15]}  Qxh2+ {[%clk 0:00:13]} 33. Qxh2 {[%clk 0:00:14]}  Rxh2+ {[%clk 0:00:14]} 34. Kxh2 {[%clk 0:00:15]}  exd5 {[%clk 0:00:10]} 35. Rxg6+ {[%clk 0:00:15]}  Kf7 {[%clk 0:00:10]} 36. Rg5 {[%clk 0:00:13]}  Rh8+ {[%clk 0:00:10]} 37. Kg3 {[%clk 0:00:12]}  Be6 {[%clk 0:00:09]} 38. Rf1+ {[%clk 0:00:11]}  Ke7 {[%clk 0:00:09]} 39. Rg7+ {[%clk 0:00:11]}  Kd8 {[%clk 0:00:05]} 40. Re1 {[%clk 0:00:11]}  Bd6+ {[%clk 0:00:05]} 41. Kg2 {[%clk 0:00:09]}  Bd7 {[%clk 0:00:04]} 42. Nf3 {[%clk 0:00:07]}  Re8 {[%clk 0:00:03]} 43. Rxe8+ {[%clk 0:00:06]}  Bxe8 {[%clk 0:00:04]} 44. Nd4 {[%clk 0:00:05]}  Bd7 {[%clk 0:00:01]} 45. Rg8+ {[%clk 0:00:04]}  Kc7 {[%clk 0:00:01]} 46. Rg7 {[%clk 0:00:04]}  Be5 {[%clk 0:00:02]} 47. Ne6+ {[%clk 0:00:03]}  Kd6 {[%clk 0:00:02]} 48. Nf8 {[%clk 0:00:02]}  Bxg7 {[%clk 0:00:02]} 49. Nxd7 {[%clk 0:00:00]}  Kxd7 {[%clk 0:00:02]} 0-1


[Site "https://www.chess.com"]

[Event "Titled Tuesday Blitz November 14 Late 2023"]
[White "Sztokbant, Bernardo Vainzoff"]
[Black "Broca Jimenez, Fernando"]
[WhiteFideId "2115956"]
[BlackFideId "5104742"]
[WhiteElo "2482"]
[BlackElo "2211"]
[Result "1-0"]
[Round "2"]
[TimeControl "180+1"]
[Date "2023.11.14"]
[WhiteClock "0:00:15"]
[BlackClock "0:00:09"]
[Board "154"]

1. e4 {[%clk 0:03:00]}  c5 {[%clk 0:02:58]} 2. Nf3 {[%clk 0:02:58]}  g6 {[%clk 0:02:57]} 3. Bc4 {[%clk 0:02:57]}  Nc6 {[%clk 0:02:56]} 4. O-O {[%clk 0:02:58]}  Bg7 {[%clk 0:02:53]} 5. c3 {[%clk 0:02:58]}  Nf6 {[%clk 0:02:53]} 6. Re1 {[%clk 0:02:58]}  O-O {[%clk 0:02:49]} 7. e5 {[%clk 0:02:55]}  Ng4 {[%clk 0:02:48]} 8. d4 {[%clk 0:02:54]}  cxd4 {[%clk 0:02:47]} 9. cxd4 {[%clk 0:02:55]}  d5 {[%clk 0:02:47]} 10. Bb3 {[%clk 0:02:43]}  Nh6 {[%clk 0:02:40]} 11. Nc3 {[%clk 0:02:42]}  Bg4 {[%clk 0:02:30]} 12. Bxd5 {[%clk 0:02:35]}  Bxf3 {[%clk 0:02:26]} 13. gxf3 {[%clk 0:02:33]}  Rc8 {[%clk 0:02:19]} 14. Be3 {[%clk 0:02:08]}  Nf5 {[%clk 0:02:03]} 15. Qd2 {[%clk 0:01:57]}  e6 {[%clk 0:01:57]} 16. Bxc6 {[%clk 0:01:57]}  Rxc6 {[%clk 0:01:55]} 17. Ne4 {[%clk 0:01:43]}  h6 {[%clk 0:00:45]} 18. Rad1 {[%clk 0:01:40]}  Kh7 {[%clk 0:00:42]} 19. d5 {[%clk 0:01:35]}  exd5 {[%clk 0:00:42]} 20. Qxd5 {[%clk 0:01:36]}  Qe7 {[%clk 0:00:31]} 21. Bf4 {[%clk 0:01:28]}  Nh4 {[%clk 0:00:29]} 22. Re3 {[%clk 0:01:21]}  Rfc8 {[%clk 0:00:25]} 23. h3 {[%clk 0:00:43]}  Nf5 {[%clk 0:00:19]} 24. Rc3 {[%clk 0:00:37]}  Rxc3 {[%clk 0:00:18]} 25. bxc3 {[%clk 0:00:38]}  Qh4 {[%clk 0:00:17]} 26. Bh2 {[%clk 0:00:31]}  Qh5 {[%clk 0:00:16]} 27. Qxf7 {[%clk 0:00:20]}  Qxf3 {[%clk 0:00:14]} 28. Re1 {[%clk 0:00:15]}  Rd8 {[%clk 0:00:10]} 29. Nf6+ {[%clk 0:00:15]}  Kh8 {[%clk 0:00:10]} 30. Qxg6 {[%clk 0:00:15]}  Nh4 {[%clk 0:00:09]} 31. Qh7# {[%clk 0:00:15]} 1-0


[Site "https://www.chess.com"]

[Event "Titled Tuesday Blitz November 14 Late 2023"]
[White "Willy, Stephen"]
[Black "Rodriguez Dominguez, Melissa"]
[WhiteFideId "30981468"]
[BlackFideId "3517560"]
[WhiteElo "2475"]
[BlackElo "2210"]
[Result "0-1"]
[Round "2"]
[TimeControl "180+1"]
[Date "2023.11.14"]
[WhiteClock "0:00:02"]
[BlackClock "0:00:24"]
[Board "156"]

1. e4 {[%clk 0:03:00]}  c5 {[%clk 0:01:56]} 2. Nf3 {[%clk 0:02:58]}  e6 {[%clk 0:01:56]} 3. Nc3 {[%clk 0:02:55]}  Nc6 {[%clk 0:01:54]} 4. d4 {[%clk 0:02:52]}  cxd4 {[%clk 0:01:55]} 5. Nxd4 {[%clk 0:02:53]}  Qc7 {[%clk 0:01:55]} 6. Be3 {[%clk 0:02:46]}  a6 {[%clk 0:01:55]} 7. Be2 {[%clk 0:02:46]}  Nf6 {[%clk 0:01:54]} 8. O-O {[%clk 0:02:46]}  Bb4 {[%clk 0:01:54]} 9. Na4 {[%clk 0:02:43]}  O-O {[%clk 0:01:54]} 10. c3 {[%clk 0:02:25]}  Be7 {[%clk 0:01:52]} 11. f3 {[%clk 0:02:18]}  b5 {[%clk 0:01:52]} 12. Nxc6 {[%clk 0:02:10]}  Qxc6 {[%clk 0:01:48]} 13. Nb6 {[%clk 0:02:09]}  Rb8 {[%clk 0:01:48]} 14. Nxc8 {[%clk 0:02:08]}  Rbxc8 {[%clk 0:01:48]} 15. Qe1 {[%clk 0:02:03]}  d5 {[%clk 0:01:48]} 16. e5 {[%clk 0:01:36]}  Nd7 {[%clk 0:01:47]} 17. Bd4 {[%clk 0:01:31]}  Bc5 {[%clk 0:01:43]} 18. Bd3 {[%clk 0:01:21]}  Bxd4+ {[%clk 0:01:37]} 19. cxd4 {[%clk 0:01:22]}  Qb6 {[%clk 0:01:37]} 20. Qf2 {[%clk 0:01:19]}  Rc7 {[%clk 0:01:33]} 21. h3 {[%clk 0:01:10]}  Rfc8 {[%clk 0:01:29]} 22. Kh1 {[%clk 0:01:08]}  a5 {[%clk 0:01:16]} 23. Qh4 {[%clk 0:00:59]}  g6 {[%clk 0:01:15]} 24. Qf4 {[%clk 0:00:51]}  b4 {[%clk 0:01:13]} 25. h4 {[%clk 0:00:43]}  Nb8 {[%clk 0:01:07]} 26. h5 {[%clk 0:00:42]}  Nc6 {[%clk 0:01:07]} 27. h6 {[%clk 0:00:41]}  Qxd4 {[%clk 0:01:03]} 28. Qf6 {[%clk 0:00:41]}  Qxe5 {[%clk 0:01:03]} 29. Qh4 {[%clk 0:00:38]}  Qxb2 {[%clk 0:00:56]} 30. Rac1 {[%clk 0:00:33]}  Qd4 {[%clk 0:00:47]} 31. Qxd4 {[%clk 0:00:09]}  Nxd4 {[%clk 0:00:48]} 32. Rcd1 {[%clk 0:00:09]}  Nc2 {[%clk 0:00:42]} 33. Rd2 {[%clk 0:00:06]}  Ne3 {[%clk 0:00:40]} 34. Re1 {[%clk 0:00:07]}  Rc1 {[%clk 0:00:39]} 35. Re2 {[%clk 0:00:06]}  Rxe1+ {[%clk 0:00:37]} 36. Rxe1 {[%clk 0:00:07]}  Nc4 {[%clk 0:00:32]} 37. g4 {[%clk 0:00:05]}  Kf8 {[%clk 0:00:31]} 38. f4 {[%clk 0:00:05]}  Ke7 {[%clk 0:00:30]} 39. f5 {[%clk 0:00:06]}  gxf5 {[%clk 0:00:30]} 40. gxf5 {[%clk 0:00:06]}  Kd6 {[%clk 0:00:30]} 41. f6 {[%clk 0:00:06]}  e5 {[%clk 0:00:29]} 42. Rg1 {[%clk 0:00:06]}  e4 {[%clk 0:00:29]} 43. Be2 {[%clk 0:00:06]}  Ne5 {[%clk 0:00:27]} 44. Rg7 {[%clk 0:00:06]}  Rc1+ {[%clk 0:00:26]} 45. Kg2 {[%clk 0:00:06]}  Rc2 {[%clk 0:00:27]} 46. Kf2 {[%clk 0:00:06]}  d4 {[%clk 0:00:27]} 47. Ke1 {[%clk 0:00:03]}  d3 {[%clk 0:00:27]} 48. Bd1 {[%clk 0:00:03]}  Rh2 {[%clk 0:00:25]} 49. Rxh7 {[%clk 0:00:03]}  e3 {[%clk 0:00:25]} 50. Kf1 {[%clk 0:00:01]}  e2+ {[%clk 0:00:25]} 51. Bxe2 {[%clk 0:00:02]}  dxe2+ {[%clk 0:00:25]} 52. Kg1 {[%clk 0:00:02]}  Nf3# {[%clk 0:00:24]} 0-1


[Site "https://www.chess.com"]

[Event "Titled Tuesday Blitz November 14 Late 2023"]
[White "Acosta Cruz, Oscar Yosimar"]
[Black "Kopczynski, Michal"]
[WhiteFideId "5111269"]
[BlackFideId "1124200"]
[WhiteElo "2203"]
[BlackElo "2472"]
[Result "1-0"]
[Round "2"]
[TimeControl "180+1"]
[Date "2023.11.14"]
[WhiteClock "0:01:03"]
[BlackClock "0:00:19"]
[Board "158"]

1. d4 {[%clk 0:03:00]}  Nf6 {[%clk 0:02:59]} 2. Nf3 {[%clk 0:03:00]}  g6 {[%clk 0:03:00]} 3. Bf4 {[%clk 0:03:00]}  Bg7 {[%clk 0:03:00]} 4. e3 {[%clk 0:03:01]}  d6 {[%clk 0:03:01]} 5. Be2 {[%clk 0:03:02]}  O-O {[%clk 0:03:01]} 6. O-O {[%clk 0:03:03]}  Nfd7 {[%clk 0:03:02]} 7. h3 {[%clk 0:03:03]}  Nc6 {[%clk 0:03:02]} 8. Bh2 {[%clk 0:03:03]}  e5 {[%clk 0:03:03]} 9. c3 {[%clk 0:03:04]}  f5 {[%clk 0:03:02]} 10. a4 {[%clk 0:03:04]}  e4 {[%clk 0:02:59]} 11. Nfd2 {[%clk 0:03:04]}  Ne7 {[%clk 0:02:56]} 12. b4 {[%clk 0:03:03]}  d5 {[%clk 0:02:55]} 13. c4 {[%clk 0:03:01]}  c6 {[%clk 0:02:55]} 14. Nc3 {[%clk 0:02:58]}  g5 {[%clk 0:02:53]} 15. cxd5 {[%clk 0:02:59]}  cxd5 {[%clk 0:02:53]} 16. Nb5 {[%clk 0:02:58]}  f4 {[%clk 0:02:49]} 17. Qb3 {[%clk 0:02:52]}  Rf6 {[%clk 0:01:58]} 18. Nxe4 {[%clk 0:02:45]}  Kh8 {[%clk 0:01:41]} 19. Nxf6 {[%clk 0:02:43]}  Nxf6 {[%clk 0:01:42]} 20. exf4 {[%clk 0:02:41]}  gxf4 {[%clk 0:01:39]} 21. Bxf4 {[%clk 0:02:41]}  Ng6 {[%clk 0:01:39]} 22. Be3 {[%clk 0:02:29]}  Bf5 {[%clk 0:01:27]} 23. Rac1 {[%clk 0:02:27]}  a6 {[%clk 0:01:23]} 24. Nc3 {[%clk 0:02:11]}  Qd7 {[%clk 0:01:23]} 25. Kh2 {[%clk 0:02:02]}  Nh4 {[%clk 0:01:23]} 26. Rg1 {[%clk 0:01:50]}  Rg8 {[%clk 0:01:21]} 27. g4 {[%clk 0:01:48]}  Be6 {[%clk 0:01:06]} 28. b5 {[%clk 0:01:49]}  Bf8 {[%clk 0:01:02]} 29. bxa6 {[%clk 0:01:47]}  Bd6+ {[%clk 0:01:01]} 30. f4 {[%clk 0:01:43]}  bxa6 {[%clk 0:00:59]} 31. Rcf1 {[%clk 0:01:23]}  h5 {[%clk 0:00:53]} 32. g5 {[%clk 0:01:20]}  Ne4 {[%clk 0:00:47]} 33. Nxe4 {[%clk 0:01:19]}  dxe4 {[%clk 0:00:48]} 34. d5 {[%clk 0:01:18]}  Bxh3 {[%clk 0:00:47]} 35. Bd4+ {[%clk 0:01:17]}  Kh7 {[%clk 0:00:46]} 36. Qxh3 {[%clk 0:01:17]}  Qxh3+ {[%clk 0:00:43]} 37. Kxh3 {[%clk 0:01:17]}  Nf5 {[%clk 0:00:44]} 38. Be5 {[%clk 0:01:15]}  Bc5 {[%clk 0:00:44]} 39. Bxh5 {[%clk 0:01:11]}  Bxg1 {[%clk 0:00:34]} 40. Rxg1 {[%clk 0:01:11]}  Rd8 {[%clk 0:00:31]} 41. Bf7 {[%clk 0:01:06]}  e3 {[%clk 0:00:19]} 42. Kg4 {[%clk 0:01:03]} 1-0


[Site "https://www.chess.com"]

[Event "Titled Tuesday Blitz November 14 Late 2023"]
[White "Curtis, John"]
[Black "Kostiukov, Alexandr"]
[WhiteFideId "3200256"]
[BlackFideId "14108100"]
[WhiteElo "2176"]
[BlackElo "2448"]
[Result "0-1"]
[Round "2"]
[TimeControl "180+1"]
[Date "2023.11.14"]
[WhiteClock "0:00:00"]
[BlackClock "0:00:50"]
[Board "164"]

1. e4 {[%clk 0:03:00]}  c5 {[%clk 0:02:57]} 2. Nf3 {[%clk 0:03:00]}  g6 {[%clk 0:02:57]} 3. c3 {[%clk 0:02:58]}  Bg7 {[%clk 0:02:56]} 4. d4 {[%clk 0:02:58]}  cxd4 {[%clk 0:02:57]} 5. cxd4 {[%clk 0:02:59]}  d5 {[%clk 0:02:58]} 6. exd5 {[%clk 0:02:55]}  Nf6 {[%clk 0:02:57]} 7. Bb5+ {[%clk 0:02:54]}  Nbd7 {[%clk 0:02:56]} 8. Nc3 {[%clk 0:02:53]}  O-O {[%clk 0:02:55]} 9. Bg5 {[%clk 0:02:45]}  Nb6 {[%clk 0:02:27]} 10. Bxf6 {[%clk 0:02:43]}  Bxf6 {[%clk 0:02:13]} 11. Qb3 {[%clk 0:02:43]}  Bg4 {[%clk 0:02:10]} 12. Ne5 {[%clk 0:02:40]}  Bf5 {[%clk 0:02:04]} 13. O-O {[%clk 0:02:28]}  Qd6 {[%clk 0:01:49]} 14. Nc4 {[%clk 0:01:59]}  Nxc4 {[%clk 0:01:45]} 15. Bxc4 {[%clk 0:01:51]}  Bxd4 {[%clk 0:01:42]} 16. Nb5 {[%clk 0:01:51]}  Qb6 {[%clk 0:01:42]} 17. Nxd4 {[%clk 0:01:48]}  Qxd4 {[%clk 0:01:41]} 18. Rad1 {[%clk 0:01:47]}  Qb6 {[%clk 0:01:39]} 19. Rfe1 {[%clk 0:01:37]}  Qd6 {[%clk 0:01:23]} 20. Qxb7 {[%clk 0:01:32]}  Rfe8 {[%clk 0:01:16]} 21. b3 {[%clk 0:01:24]}  a6 {[%clk 0:01:12]} 22. Qc6 {[%clk 0:01:15]}  Qa3 {[%clk 0:01:07]} 23. Qa4 {[%clk 0:01:00]}  Qxa4 {[%clk 0:01:07]} 24. bxa4 {[%clk 0:00:59]}  Bc2 {[%clk 0:01:07]} 25. Rd2 {[%clk 0:00:53]}  Bxa4 {[%clk 0:01:07]} 26. Rd4 {[%clk 0:00:47]}  Bd7 {[%clk 0:01:02]} 27. f4 {[%clk 0:00:46]}  Kf8 {[%clk 0:01:01]} 28. Re2 {[%clk 0:00:43]}  a5 {[%clk 0:01:00]} 29. h3 {[%clk 0:00:37]}  Rec8 {[%clk 0:01:00]} 30. Rb2 {[%clk 0:00:22]}  Rab8 {[%clk 0:00:57]} 31. Rxb8 {[%clk 0:00:08]}  Rxb8 {[%clk 0:00:58]} 32. d6 {[%clk 0:00:00]}  Rb4 {[%clk 0:00:50]} 0-1


[Site "https://www.chess.com"]

[Event "Titled Tuesday Blitz November 14 Late 2023"]
[White "Polaczek, Richard"]
[Black "ThePeasant98"]
[WhiteFideId "200026"]
[WhiteElo "2433"]
[BlackElo "2166"]
[Result "1-0"]
[Round "2"]
[TimeControl "180+1"]
[Date "2023.11.14"]
[WhiteClock "0:01:05"]
[BlackClock "0:00:04"]
[Board "166"]

1. d4 {[%clk 0:03:00]}  Nf6 {[%clk 0:02:59]} 2. Bg5 {[%clk 0:03:00]}  d5 {[%clk 0:02:58]} 3. Bxf6 {[%clk 0:02:59]}  gxf6 {[%clk 0:02:59]} 4. c4 {[%clk 0:02:58]}  c6 {[%clk 0:02:45]} 5. cxd5 {[%clk 0:02:56]}  cxd5 {[%clk 0:02:45]} 6. Nc3 {[%clk 0:02:56]}  Nc6 {[%clk 0:02:43]} 7. e3 {[%clk 0:02:44]}  e6 {[%clk 0:02:42]} 8. Bd3 {[%clk 0:02:42]}  Bd6 {[%clk 0:02:39]} 9. Nge2 {[%clk 0:02:40]}  Bd7 {[%clk 0:02:39]} 10. O-O {[%clk 0:02:39]}  a6 {[%clk 0:02:31]} 11. a3 {[%clk 0:02:38]}  Rc8 {[%clk 0:02:29]} 12. b4 {[%clk 0:02:37]}  h5 {[%clk 0:02:14]} 13. Na4 {[%clk 0:02:35]}  h4 {[%clk 0:01:57]} 14. Nc5 {[%clk 0:02:32]}  Bb8 {[%clk 0:01:34]} 15. f4 {[%clk 0:02:24]}  e5 {[%clk 0:00:45]} 16. fxe5 {[%clk 0:02:12]}  fxe5 {[%clk 0:00:46]} 17. Nxd7 {[%clk 0:02:11]}  Qxd7 {[%clk 0:00:46]} 18. Bf5 {[%clk 0:02:09]}  Qc7 {[%clk 0:00:42]} 19. Bxc8 {[%clk 0:01:59]}  exd4 {[%clk 0:00:41]} 20. Nf4 {[%clk 0:01:59]}  Qxc8 {[%clk 0:00:30]} 21. Nxd5 {[%clk 0:01:50]}  Qe6 {[%clk 0:00:23]} 22. Qf3 {[%clk 0:01:35]}  dxe3 {[%clk 0:00:17]} 23. Rae1 {[%clk 0:01:19]}  Ba7 {[%clk 0:00:15]} 24. Kh1 {[%clk 0:01:14]}  Ne5 {[%clk 0:00:14]} 25. Nc7+ {[%clk 0:01:13]}  Kd7 {[%clk 0:00:11]} 26. Qxb7 {[%clk 0:01:11]}  Qb6 {[%clk 0:00:06]} 27. Qd5+ {[%clk 0:01:08]}  Kxc7 {[%clk 0:00:05]} 28. Qxe5+ {[%clk 0:01:07]}  Kb7 {[%clk 0:00:04]} 29. Rxf7+ {[%clk 0:01:05]} 1-0


[Site "https://www.chess.com"]

[Event "Titled Tuesday Blitz November 14 Late 2023"]
[White "Sivanandan, Bodhana"]
[Black "Yeritsyan, Hayk"]
[WhiteFideId "497592"]
[BlackFideId "13307320"]
[WhiteElo "2148"]
[BlackElo "2430"]
[Result "1-0"]
[Round "2"]
[TimeControl "180+1"]
[Date "2023.11.14"]
[WhiteClock "0:00:17"]
[BlackClock "0:00:03"]
[Board "168"]

1. d4 {[%clk 0:03:00]}  d5 {[%clk 0:02:55]} 2. Bf4 {[%clk 0:02:59]}  c5 {[%clk 0:02:53]} 3. dxc5 {[%clk 0:02:56]}  Nc6 {[%clk 0:02:52]} 4. Nf3 {[%clk 0:02:56]}  Nf6 {[%clk 0:02:49]} 5. e3 {[%clk 0:02:55]}  Bg4 {[%clk 0:02:49]} 6. Bb5 {[%clk 0:02:51]}  e6 {[%clk 0:02:43]} 7. b4 {[%clk 0:02:44]}  Be7 {[%clk 0:02:37]} 8. c3 {[%clk 0:02:35]}  O-O {[%clk 0:02:36]} 9. Bxc6 {[%clk 0:02:34]}  bxc6 {[%clk 0:02:36]} 10. O-O {[%clk 0:02:33]}  Ne4 {[%clk 0:02:32]} 11. h3 {[%clk 0:02:30]}  Bh5 {[%clk 0:02:32]} 12. Nbd2 {[%clk 0:02:05]}  Nxc3 {[%clk 0:02:21]} 13. Qc2 {[%clk 0:02:03]}  Ne2+ {[%clk 0:02:19]} 14. Kh1 {[%clk 0:02:01]}  Nxf4 {[%clk 0:02:20]} 15. exf4 {[%clk 0:02:00]}  Bg6 {[%clk 0:02:20]} 16. Qb2 {[%clk 0:01:54]}  Bf6 {[%clk 0:02:19]} 17. Ne5 {[%clk 0:01:53]}  Qc7 {[%clk 0:02:18]} 18. Ndf3 {[%clk 0:01:53]}  Be4 {[%clk 0:02:16]} 19. Qe2 {[%clk 0:01:42]}  a5 {[%clk 0:01:59]} 20. a3 {[%clk 0:01:40]}  Rfb8 {[%clk 0:01:50]} 21. Rfe1 {[%clk 0:01:24]}  Bxf3 {[%clk 0:01:43]} 22. Qxf3 {[%clk 0:01:23]}  axb4 {[%clk 0:01:39]} 23. axb4 {[%clk 0:01:22]}  Rxa1 {[%clk 0:01:38]} 24. Rxa1 {[%clk 0:01:22]}  Bxe5 {[%clk 0:01:38]} 25. fxe5 {[%clk 0:01:21]}  Qxe5 {[%clk 0:01:37]} 26. Ra7 {[%clk 0:01:21]}  Qf6 {[%clk 0:01:13]} 27. Qg3 {[%clk 0:01:19]}  e5 {[%clk 0:01:11]} 28. Ra6 {[%clk 0:01:10]}  g6 {[%clk 0:01:07]} 29. Rb6 {[%clk 0:00:59]}  Rc8 {[%clk 0:00:49]} 30. b5 {[%clk 0:00:55]}  Kg7 {[%clk 0:00:48]} 31. bxc6 {[%clk 0:00:54]}  g5 {[%clk 0:00:28]} 32. h4 {[%clk 0:00:43]}  Qf4 {[%clk 0:00:23]} 33. Qxg5+ {[%clk 0:00:39]}  Qxg5 {[%clk 0:00:23]} 34. hxg5 {[%clk 0:00:39]}  Kg6 {[%clk 0:00:23]} 35. Kg1 {[%clk 0:00:38]}  Kxg5 {[%clk 0:00:24]} 36. Kf1 {[%clk 0:00:39]}  f6 {[%clk 0:00:24]} 37. Ke2 {[%clk 0:00:39]}  Kf5 {[%clk 0:00:25]} 38. Ke3 {[%clk 0:00:37]}  h5 {[%clk 0:00:24]} 39. g3 {[%clk 0:00:37]}  Ke6 {[%clk 0:00:19]} 40. c7+ {[%clk 0:00:36]}  Kf5 {[%clk 0:00:19]} 41. Rc6 {[%clk 0:00:33]}  d4+ {[%clk 0:00:18]} 42. Kd3 {[%clk 0:00:33]}  Kg5 {[%clk 0:00:18]} 43. f3 {[%clk 0:00:31]}  Kf5 {[%clk 0:00:18]} 44. Kd2 {[%clk 0:00:29]}  Kg5 {[%clk 0:00:16]} 45. Ke2 {[%clk 0:00:29]}  h4 {[%clk 0:00:14]} 46. gxh4+ {[%clk 0:00:28]}  Kf5 {[%clk 0:00:14]} 47. Kd3 {[%clk 0:00:25]}  Kg6 {[%clk 0:00:12]} 48. h5+ {[%clk 0:00:21]}  Kg5 {[%clk 0:00:11]} 49. h6 {[%clk 0:00:20]}  Kxh6 {[%clk 0:00:12]} 50. Rxf6+ {[%clk 0:00:20]}  Kg5 {[%clk 0:00:12]} 51. Rc6 {[%clk 0:00:20]}  Kf5 {[%clk 0:00:12]} 52. Kc4 {[%clk 0:00:19]}  Kf4 {[%clk 0:00:11]} 53. Rf6+ {[%clk 0:00:18]}  Ke3 {[%clk 0:00:10]} 54. Rf5 {[%clk 0:00:18]}  Rxc7 {[%clk 0:00:04]} 55. Rxe5+ {[%clk 0:00:18]}  Kxf3 {[%clk 0:00:05]} 56. Kxd4 {[%clk 0:00:18]}  Kf4 {[%clk 0:00:05]} 57. Re1 {[%clk 0:00:17]}  Kf5 {[%clk 0:00:05]} 58. Kd5 {[%clk 0:00:17]}  Rd7+ {[%clk 0:00:06]} 59. Kc6 {[%clk 0:00:18]}  Rd2 {[%clk 0:00:05]} 60. Kc7 {[%clk 0:00:18]}  Rc2 {[%clk 0:00:05]} 61. c6 {[%clk 0:00:18]}  Rc3 {[%clk 0:00:05]} 62. Kb7 {[%clk 0:00:18]}  Rb3+ {[%clk 0:00:06]} 63. Kc8 {[%clk 0:00:18]}  Rc3 {[%clk 0:00:06]} 64. c7 {[%clk 0:00:19]}  Kf6 {[%clk 0:00:06]} 65. Re4 {[%clk 0:00:16]}  Rc2 {[%clk 0:00:05]} 66. Kd7 {[%clk 0:00:15]}  Rd2+ {[%clk 0:00:05]} 67. Kc6 {[%clk 0:00:15]}  Rc2+ {[%clk 0:00:05]} 68. Kd6 {[%clk 0:00:16]}  Rd2+ {[%clk 0:00:05]} 69. Kc5 {[%clk 0:00:16]}  Rc2+ {[%clk 0:00:05]} 70. Rc4 {[%clk 0:00:17]}  Rxc4+ {[%clk 0:00:03]} 71. Kxc4 {[%clk 0:00:17]} 1-0


[Site "https://www.chess.com"]

[Event "Titled Tuesday Blitz November 14 Late 2023"]
[White "Fuentes Godoy, Lilia Ivonne"]
[Black "szachmistrz2500"]
[WhiteFideId "5104130"]
[WhiteElo "2135"]
[BlackElo "2426"]
[Result "0-1"]
[Round "2"]
[TimeControl "180+1"]
[Date "2023.11.14"]
[WhiteClock "0:00:03"]
[BlackClock "0:00:54"]
[Board "172"]

1. d4 {[%clk 0:03:00]}  d5 {[%clk 0:02:59]} 2. c4 {[%clk 0:03:01]}  c6 {[%clk 0:03:00]} 3. cxd5 {[%clk 0:03:01]}  cxd5 {[%clk 0:03:01]} 4. Bf4 {[%clk 0:03:01]}  Nf6 {[%clk 0:03:00]} 5. Nc3 {[%clk 0:03:01]}  Nc6 {[%clk 0:02:58]} 6. e3 {[%clk 0:03:02]}  a6 {[%clk 0:02:57]} 7. Bd3 {[%clk 0:03:00]}  Bg4 {[%clk 0:02:54]} 8. f3 {[%clk 0:02:56]}  Bd7 {[%clk 0:02:52]} 9. Rc1 {[%clk 0:02:56]}  e6 {[%clk 0:02:51]} 10. a3 {[%clk 0:02:55]}  Nh5 {[%clk 0:02:50]} 11. Nge2 {[%clk 0:02:49]}  Nxf4 {[%clk 0:02:49]} 12. Nxf4 {[%clk 0:02:49]}  Bd6 {[%clk 0:02:49]} 13. Nfe2 {[%clk 0:02:49]}  Qh4+ {[%clk 0:02:46]} 14. g3 {[%clk 0:02:47]}  Qh3 {[%clk 0:02:47]} 15. Kd2 {[%clk 0:02:16]}  O-O {[%clk 0:02:42]} 16. Qf1 {[%clk 0:02:13]}  Qh6 {[%clk 0:02:39]} 17. h4 {[%clk 0:02:00]}  e5 {[%clk 0:02:31]} 18. Nxd5 {[%clk 0:01:44]}  exd4 {[%clk 0:02:24]} 19. f4 {[%clk 0:01:35]}  dxe3+ {[%clk 0:02:24]} 20. Nxe3 {[%clk 0:01:36]}  Rad8 {[%clk 0:02:05]} 21. Qf3 {[%clk 0:01:20]}  Rfe8 {[%clk 0:01:55]} 22. Rc3 {[%clk 0:01:07]}  Qe6 {[%clk 0:01:38]} 23. Bf5 {[%clk 0:00:59]}  Qa2 {[%clk 0:01:28]} 24. Bxd7 {[%clk 0:00:54]}  Rxd7 {[%clk 0:01:29]} 25. Kc2 {[%clk 0:00:54]}  Bxa3 {[%clk 0:01:14]} 26. Rxa3 {[%clk 0:00:49]}  Nb4+ {[%clk 0:01:05]} 27. Kc3 {[%clk 0:00:13]}  Rd3+ {[%clk 0:01:01]} 28. Kxb4 {[%clk 0:00:11]}  Qxb2+ {[%clk 0:01:01]} 29. Kc4 {[%clk 0:00:09]}  Qxa3 {[%clk 0:01:01]} 30. Qxb7 {[%clk 0:00:03]}  Rdxe3 {[%clk 0:00:54]} 0-1


[Site "https://www.chess.com"]